[Event "*** Titled Tuesday Blitz"]
[Site "Chess.com"]
[Date "2020.03.03"]
[Round "4"]
[White "rasmussvane"]
[Black "Andrei_Belozerov"]
[Result "1-0"]
[WhiteElo "2882"]
[BlackElo "2645"]
[TimeControl "180+1"]
[EndTime "9:42:01 PST"]
[Termination "rasmussvane won by resignation"]

1. Nf3 {[%clk 0:03:00.9]} 1... d5 {[%clk 0:02:58.8]} 2. g3 {[%clk 0:03:01]} 2...
Bg4 {[%clk 0:02:57.1]} 3. Bg2 {[%clk 0:03:01]} 3... Nd7 {[%clk 0:02:56.7]} 4. h3
{[%clk 0:03:01.2]} 4... Bh5 {[%clk 0:02:56]} 5. O-O {[%clk 0:03:01.2]} 5... c6
{[%clk 0:02:54.4]} 6. d4 {[%clk 0:03:00.8]} 6... e6 {[%clk 0:02:53.6]} 7. c4
{[%clk 0:03:01.3]} 7... Ngf6 {[%clk 0:02:52.8]} 8. cxd5 {[%clk 0:02:59.9]} 8...
exd5 {[%clk 0:02:52]} 9. Nh4 {[%clk 0:03:00]} 9... Bg6 {[%clk 0:02:41]} 10. Nc3
{[%clk 0:02:58.2]} 10... Bd6 {[%clk 0:02:31.2]} 11. Nxg6 {[%clk 0:02:58.1]}
11... hxg6 {[%clk 0:02:29.8]} 12. Bg5 {[%clk 0:02:58.5]} 12... O-O {[%clk
0:02:28.2]} 13. h4 {[%clk 0:02:58.8]} 13... Re8 {[%clk 0:02:24.1]} 14. Qc2
{[%clk 0:02:58.9]} 14... Nf8 {[%clk 0:02:02.1]} 15. Rad1 {[%clk 0:02:49]} 15...
Ne6 {[%clk 0:02:01.4]} 16. Bc1 {[%clk 0:02:36.7]} 16... Qb6 {[%clk 0:01:53.2]}
17. Qd3 {[%clk 0:02:35.7]} 17... Re7 {[%clk 0:01:47.2]} 18. Bf3 {[%clk
0:02:35.3]} 18... Rae8 {[%clk 0:01:45.5]} 19. Kg2 {[%clk 0:02:35.7]} 19... Bb4
{[%clk 0:01:36.8]} 20. Rh1 {[%clk 0:02:29.8]} 20... Nh5 {[%clk 0:01:27]} 21. Bg5
{[%clk 0:02:21.8]} 21... Rd7 {[%clk 0:01:20.9]} 22. a3 {[%clk 0:02:21.1]} 22...
Be7 {[%clk 0:01:18.2]} 23. Bc1 {[%clk 0:02:19]} 23... Rf8 {[%clk 0:01:11.4]} 24.
b4 {[%clk 0:02:18.5]} 24... f5 {[%clk 0:01:09.6]} 25. e3 {[%clk 0:02:08.9]}
25... Nc7 {[%clk 0:01:04.9]} 26. Ne2 {[%clk 0:02:06.5]} 26... Bd6 {[%clk
0:01:00.1]} 27. Bd2 {[%clk 0:01:59.7]} 27... Ne8 {[%clk 0:00:58.9]} 28. Rb1
{[%clk 0:01:54.4]} 28... Nef6 {[%clk 0:00:56.5]} 29. a4 {[%clk 0:01:54.9]} 29...
Ne4 {[%clk 0:00:56.1]} 30. b5 {[%clk 0:01:54.5]} 30... c5 {[%clk 0:00:52.9]} 31.
dxc5 {[%clk 0:01:53.4]} 31... Bxc5 {[%clk 0:00:52.7]} 32. Bb4 {[%clk 0:01:53.4]}
32... Rfd8 {[%clk 0:00:42.5]} 33. Rhc1 {[%clk 0:01:46.2]} 33... Bxb4 {[%clk
0:00:41]} 34. Rxb4 {[%clk 0:01:47.1]} 34... Nhf6 {[%clk 0:00:30.3]} 35. Qc2
{[%clk 0:01:27.3]} 35... Re7 {[%clk 0:00:25.9]} 36. Rd4 {[%clk 0:01:25.3]} 36...
Rde8 {[%clk 0:00:25.5]} 37. Nf4 {[%clk 0:01:24]} 37... g5 {[%clk 0:00:20]} 38.
hxg5 {[%clk 0:01:18.4]} 38... Nxg5 {[%clk 0:00:20]} 39. Nxd5 {[%clk 0:01:17.1]}
39... Qd6 {[%clk 0:00:17.2]} 40. Nxe7+ {[%clk 0:01:15]} 40... Qxe7 {[%clk
0:00:16.6]} 41. Qxf5 {[%clk 0:01:14.9]} 41... Nxf3 {[%clk 0:00:14.5]} 42. Qxf3
{[%clk 0:01:15.8]} 42... Ne4 {[%clk 0:00:11.4]} 43. Rcc4 {[%clk 0:01:15.1]}
43... Nd6 {[%clk 0:00:09.1]} 44. Qd5+ {[%clk 0:01:13.7]} 44... Kh7 {[%clk
0:00:06.9]} 45. Qxd6 {[%clk 0:01:03.3]} 1-0

[Event "*** Titled Tuesday Blitz"]
[Site "Chess.com"]
[Date "2020.03.03"]
[Round "4"]
[White "NTBT_DHS"]
[Black "Mikedannnn"]
[Result "1/2-1/2"]
[WhiteElo "2704"]
[BlackElo "2537"]
[TimeControl "180+1"]
[EndTime "9:42:07 PST"]
[Termination "Game drawn by repetition"]

1. d4 {[%clk 0:03:00.9]} 1... c5 {[%clk 0:02:57.2]} 2. d5 {[%clk 0:03:00.7]}
2... d6 {[%clk 0:02:56.5]} 3. e4 {[%clk 0:03:00.7]} 3... g6 {[%clk 0:02:55.8]}
4. h4 {[%clk 0:03:00.4]} 4... h5 {[%clk 0:02:55.6]} 5. Bb5+ {[%clk 0:02:58.4]}
5... Bd7 {[%clk 0:02:53.6]} 6. a4 {[%clk 0:02:57.9]} 6... Bxb5 {[%clk
0:02:52.3]} 7. axb5 {[%clk 0:02:58.8]} 7... Bg7 {[%clk 0:02:52.4]} 8. Nf3 {[%clk
0:02:56.1]} 8... Nf6 {[%clk 0:02:50.8]} 9. Nc3 {[%clk 0:02:55.8]} 9... O-O
{[%clk 0:02:45.6]} 10. Ng5 {[%clk 0:02:54.6]} 10... Nbd7 {[%clk 0:02:43.7]} 11.
Qe2 {[%clk 0:02:30.7]} 11... Qc7 {[%clk 0:02:06.6]} 12. f3 {[%clk 0:02:26]}
12... c4 {[%clk 0:01:59.5]} 13. Be3 {[%clk 0:02:23.6]} 13... a6 {[%clk 0:01:57]}
14. O-O {[%clk 0:02:21.2]} 14... Ne5 {[%clk 0:01:48.9]} 15. b6 {[%clk
0:02:19.7]} 15... Qd8 {[%clk 0:01:45.3]} 16. Bd4 {[%clk 0:02:14.4]} 16... Nfd7
{[%clk 0:01:41.6]} 17. Qe3 {[%clk 0:02:12.6]} 17... Nc5 {[%clk 0:01:37.4]} 18.
Na4 {[%clk 0:02:09.5]} 18... Ned7 {[%clk 0:01:01.8]} 19. Bxg7 {[%clk 0:02:06]}
19... Kxg7 {[%clk 0:01:02.7]} 20. Nxc5 {[%clk 0:01:46.6]} 20... Nxc5 {[%clk
0:01:01.6]} 21. f4 {[%clk 0:01:40.2]} 21... Qxb6 {[%clk 0:01:00.2]} 22. Kh1
{[%clk 0:01:29.8]} 22... Nd7 {[%clk 0:01:00]} 23. Qc3+ {[%clk 0:01:29.4]} 23...
Nf6 {[%clk 0:00:51.3]} 24. f5 {[%clk 0:01:29.5]} 24... Kg8 {[%clk 0:00:32.1]}
25. Rf3 {[%clk 0:01:25.8]} 25... Ng4 {[%clk 0:00:26.4]} 26. Raf1 {[%clk
0:01:24.8]} 26... Ne5 {[%clk 0:00:23.6]} 27. Rg3 {[%clk 0:01:24]} 27... a5
{[%clk 0:00:20.9]} 28. f6 {[%clk 0:00:58.9]} 28... exf6 {[%clk 0:00:19.7]} 29.
Rxf6 {[%clk 0:00:59.8]} 29... Qb4 {[%clk 0:00:19.9]} 30. Qe3 {[%clk 0:00:26.2]}
30... Ng4 {[%clk 0:00:19.5]} 31. Rxg4 {[%clk 0:00:26.2]} 31... hxg4 {[%clk
0:00:20]} 32. h5 {[%clk 0:00:19.3]} 32... Qxb2 {[%clk 0:00:19.8]} 33. Qf2 {[%clk
0:00:11]} 33... Qa1+ {[%clk 0:00:19.3]} 34. Kh2 {[%clk 0:00:10.7]} 34... Qe5+
{[%clk 0:00:19.9]} 35. g3 {[%clk 0:00:11.1]} 35... Qxg5 {[%clk 0:00:18.2]} 36.
Rxd6 {[%clk 0:00:10.4]} 36... Qxh5+ {[%clk 0:00:17.9]} 37. Kg2 {[%clk
0:00:10.8]} 37... Qe5 {[%clk 0:00:17.8]} 38. Qb6 {[%clk 0:00:08.1]} 38... Qxe4+
{[%clk 0:00:17.5]} 39. Kh2 {[%clk 0:00:08.3]} 39... Qe2+ {[%clk 0:00:15.7]} 40.
Kh1 {[%clk 0:00:07.8]} 40... a4 {[%clk 0:00:15.9]} 41. Rxg6+ {[%clk 0:00:07.5]}
41... fxg6 {[%clk 0:00:11.2]} 42. Qxg6+ {[%clk 0:00:08.4]} 42... Kh8 {[%clk
0:00:11.2]} 43. Qh6+ {[%clk 0:00:09.3]} 43... Kg8 {[%clk 0:00:12.1]} 44. Qg6+
{[%clk 0:00:10.2]} 44... Kh8 {[%clk 0:00:12.5]} 45. Qh6+ {[%clk 0:00:11.1]}
45... Kg8 {[%clk 0:00:12.9]} 46. Qg6+ {[%clk 0:00:12]} 1/2-1/2

[Event "*** Titled Tuesday Blitz"]
[Site "Chess.com"]
[Date "2020.03.03"]
[Round "4"]
[White "ShahMatKanal"]
[Black "Nalatac"]
[Result "0-1"]
[WhiteElo "2497"]
[BlackElo "2289"]
[TimeControl "180+1"]
[EndTime "9:42:10 PST"]
[Termination "Nalatac won by checkmate"]

1. e4 {[%clk 0:03:00.9]} 1... c5 {[%clk 0:03:00]} 2. Nc3 {[%clk 0:03:01.1]} 2...
Nc6 {[%clk 0:02:59.7]} 3. Bb5 {[%clk 0:03:00.9]} 3... Nd4 {[%clk 0:02:57.3]} 4.
Nf3 {[%clk 0:03:01.1]} 4... a6 {[%clk 0:02:55]} 5. Bd3 {[%clk 0:02:58.1]} 5...
Nc6 {[%clk 0:02:35.9]} 6. O-O {[%clk 0:02:57.3]} 6... g6 {[%clk 0:02:36.2]} 7.
b3 {[%clk 0:02:52.2]} 7... Bg7 {[%clk 0:02:34.1]} 8. Bb2 {[%clk 0:02:52.7]} 8...
e6 {[%clk 0:02:29.9]} 9. Na4 {[%clk 0:02:51.1]} 9... Bxb2 {[%clk 0:02:24.7]} 10.
Nxb2 {[%clk 0:02:52]} 10... d5 {[%clk 0:02:12.4]} 11. exd5 {[%clk 0:02:50.9]}
11... exd5 {[%clk 0:02:13.3]} 12. Re1+ {[%clk 0:02:50.4]} 12... Nge7 {[%clk
0:02:11.9]} 13. Ne5 {[%clk 0:02:32]} 13... O-O {[%clk 0:02:05.1]} 14. Qf3 {[%clk
0:02:29.3]} 14... Nxe5 {[%clk 0:01:41]} 15. Rxe5 {[%clk 0:02:30.2]} 15... Be6
{[%clk 0:01:41]} 16. Rae1 {[%clk 0:02:28.3]} 16... Nc6 {[%clk 0:01:40.9]} 17.
R5e3 {[%clk 0:02:22.9]} 17... Qd6 {[%clk 0:01:09.2]} 18. Qg3 {[%clk 0:02:09.4]}
18... Qxg3 {[%clk 0:00:55.7]} 19. hxg3 {[%clk 0:02:09.8]} 19... b5 {[%clk
0:00:52]} 20. c3 {[%clk 0:02:05.1]} 20... Rfd8 {[%clk 0:00:38.9]} 21. R3e2
{[%clk 0:02:00.2]} 21... Rd6 {[%clk 0:00:30.7]} 22. Bb1 {[%clk 0:01:53.6]} 22...
Rad8 {[%clk 0:00:28.7]} 23. d3 {[%clk 0:01:53.1]} 23... d4 {[%clk 0:00:20.5]}
24. c4 {[%clk 0:01:53.2]} 24... Ne7 {[%clk 0:00:06.9]} 25. Rc1 {[%clk
0:01:52.7]} 25... b4 {[%clk 0:00:04.8]} 26. Na4 {[%clk 0:01:52.6]} 26... Rc8
{[%clk 0:00:04.8]} 27. Rf1 {[%clk 0:01:52.9]} 27... Bg4 {[%clk 0:00:04]} 28. f3
{[%clk 0:01:53]} 28... Bd7 {[%clk 0:00:04.6]} 29. Nb2 {[%clk 0:01:52.8]} 29...
Nf5 {[%clk 0:00:05.2]} 30. g4 {[%clk 0:01:50.5]} 30... Ng3 {[%clk 0:00:04.5]}
31. Rfe1 {[%clk 0:01:50.3]} 31... Nxe2+ {[%clk 0:00:04.6]} 32. Rxe2 {[%clk
0:01:51.2]} 32... Re8 {[%clk 0:00:04.4]} 33. Kf2 {[%clk 0:01:50.8]} 33... Rde6
{[%clk 0:00:03.9]} 34. Re4 {[%clk 0:01:48.9]} 34... f5 {[%clk 0:00:03.3]} 35.
gxf5 {[%clk 0:01:49]} 35... gxf5 {[%clk 0:00:04]} 36. Rxe6 {[%clk 0:01:48.9]}
36... Rxe6 {[%clk 0:00:04.9]} 37. Bc2 {[%clk 0:01:48]} 37... f4 {[%clk
0:00:04.6]} 38. Nd1 {[%clk 0:01:47.4]} 38... Kg7 {[%clk 0:00:04.9]} 39. Kf1
{[%clk 0:01:47.8]} 39... Kf6 {[%clk 0:00:05.2]} 40. Nf2 {[%clk 0:01:48.5]} 40...
Bc6 {[%clk 0:00:04.5]} 41. Nh3 {[%clk 0:01:47.4]} 41... Kf5 {[%clk 0:00:04.2]}
42. Bd1 {[%clk 0:01:47.7]} 42... Re3 {[%clk 0:00:03.6]} 43. Nf2 {[%clk
0:01:48.3]} 43... Re5 {[%clk 0:00:02.9]} 44. Be2 {[%clk 0:01:48.5]} 44... Re7
{[%clk 0:00:03]} 45. Ng4 {[%clk 0:01:48.8]} 45... h5 {[%clk 0:00:03]} 46. Nf2
{[%clk 0:01:48.4]} 46... a5 {[%clk 0:00:03.4]} 47. Ke1 {[%clk 0:01:46.3]} 47...
Ra7 {[%clk 0:00:03.4]} 48. Kd2 {[%clk 0:01:45.8]} 48... a4 {[%clk 0:00:03.8]}
49. Bd1 {[%clk 0:01:45.4]} 49... Ra8 {[%clk 0:00:02.4]} 50. Ne4 {[%clk 0:01:43]}
50... Bxe4 {[%clk 0:00:02]} 51. fxe4+ {[%clk 0:01:43.9]} 51... Ke5 {[%clk
0:00:01.7]} 52. Bxh5 {[%clk 0:01:43.9]} 52... axb3 {[%clk 0:00:01.2]} 53. axb3
{[%clk 0:01:44.8]} 53... Ra2+ {[%clk 0:00:01.5]} 54. Ke1 {[%clk 0:01:45.1]}
54... Rxg2 {[%clk 0:00:02.4]} 55. Bf3 {[%clk 0:01:44.4]} 55... Rb2 {[%clk
0:00:02.7]} 56. Bd1 {[%clk 0:01:44.8]} 56... f3 {[%clk 0:00:02.2]} 57. Bxf3
{[%clk 0:01:43.5]} 57... Rxb3 {[%clk 0:00:02.7]} 58. Kd2 {[%clk 0:01:44.4]}
58... Rb2+ {[%clk 0:00:02.7]} 59. Kc1 {[%clk 0:01:44.6]} 59... Rf2 {[%clk
0:00:02.8]} 60. Bd1 {[%clk 0:01:45.4]} 60... Kf4 {[%clk 0:00:02.9]} 61. Bc2
{[%clk 0:01:44.6]} 61... Ke3 {[%clk 0:00:03.1]} 62. Bb1 {[%clk 0:01:45.5]} 62...
Rf1+ {[%clk 0:00:03.1]} 63. Kb2 {[%clk 0:01:46.4]} 63... Rf2+ {[%clk 0:00:03.1]}
64. Kb3 {[%clk 0:01:46.4]} 64... Kd2 {[%clk 0:00:03.2]} 65. e5 {[%clk
0:01:44.1]} 65... Re2 {[%clk 0:00:03.3]} 66. Ka4 {[%clk 0:01:43.1]} 66... Rxe5
{[%clk 0:00:03.4]} 67. Kb5 {[%clk 0:01:43.7]} 67... Kc3 {[%clk 0:00:03.7]} 68.
Kc6 {[%clk 0:01:43.3]} 68... Kb2 {[%clk 0:00:03.9]} 69. Kd6 {[%clk 0:01:44.2]}
69... Rh5 {[%clk 0:00:04.2]} 70. Bc2 {[%clk 0:01:43]} 70... Kxc2 {[%clk
0:00:04.4]} 71. Kc6 {[%clk 0:01:43.9]} 71... Kxd3 {[%clk 0:00:04.6]} 72. Kb5
{[%clk 0:01:44.1]} 72... Kc3 {[%clk 0:00:04.9]} 73. Ka4 {[%clk 0:01:44.1]} 73...
b3 {[%clk 0:00:05.3]} 74. Ka3 {[%clk 0:01:45]} 74... b2 {[%clk 0:00:05.8]} 75.
Ka2 {[%clk 0:01:45.9]} 75... Kc2 {[%clk 0:00:06.2]} 76. Ka3 {[%clk 0:01:45.5]}
76... Rh3+ {[%clk 0:00:06.8]} 77. Ka4 {[%clk 0:01:45]} 77... b1=Q {[%clk
0:00:07.3]} 78. Ka5 {[%clk 0:01:45.9]} 78... Ra3# {[%clk 0:00:07.2]} 0-1

[Event "*** Titled Tuesday Blitz"]
[Site "Chess.com"]
[Date "2020.03.03"]
[Round "4"]
[White "DishonorOnYourCow"]
[Black "Alexander_Moskalenko"]
[Result "0-1"]
[WhiteElo "2297"]
[BlackElo "2834"]
[TimeControl "180+1"]
[EndTime "9:42:14 PST"]
[Termination "Alexander_Moskalenko won on time"]

1. d4 {[%clk 0:03:00.9]} 1... d5 {[%clk 0:02:58.8]} 2. c4 {[%clk 0:03:00.4]}
2... c6 {[%clk 0:02:59.7]} 3. Nf3 {[%clk 0:02:57.8]} 3... Nf6 {[%clk 0:02:59.1]}
4. e3 {[%clk 0:02:57.3]} 4... e6 {[%clk 0:02:59.4]} 5. b3 {[%clk 0:02:54.4]}
5... Nbd7 {[%clk 0:02:59.4]} 6. Bb2 {[%clk 0:02:54.3]} 6... Bd6 {[%clk
0:02:56.6]} 7. Bd3 {[%clk 0:02:52.7]} 7... O-O {[%clk 0:02:56.9]} 8. Nbd2 {[%clk
0:02:51.4]} 8... Re8 {[%clk 0:02:56.6]} 9. Ne5 {[%clk 0:02:48.3]} 9... dxc4
{[%clk 0:02:48.1]} 10. Ndxc4 {[%clk 0:02:47.2]} 10... Bb4+ {[%clk 0:02:48.6]}
11. Kf1 {[%clk 0:02:43.3]} 11... Bf8 {[%clk 0:02:23]} 12. h4 {[%clk 0:02:28.7]}
12... c5 {[%clk 0:02:21.4]} 13. Qf3 {[%clk 0:02:22.8]} 13... Nxe5 {[%clk
0:02:17.8]} 14. Nxe5 {[%clk 0:02:22]} 14... cxd4 {[%clk 0:02:17.7]} 15. Bxd4
{[%clk 0:02:12.5]} 15... Qd5 {[%clk 0:02:18.3]} 16. Qxd5 {[%clk 0:02:09.5]}
16... Nxd5 {[%clk 0:02:07.2]} 17. Ke2 {[%clk 0:02:05]} 17... b6 {[%clk
0:02:07.5]} 18. Bb5 {[%clk 0:02:02.3]} 18... Re7 {[%clk 0:01:56.1]} 19. Rac1
{[%clk 0:01:58.6]} 19... f6 {[%clk 0:01:54.9]} 20. Nd3 {[%clk 0:01:50.2]} 20...
Bb7 {[%clk 0:01:54.5]} 21. Bc6 {[%clk 0:01:47.1]} 21... e5 {[%clk 0:01:41.9]}
22. Bb2 {[%clk 0:01:45.3]} 22... Rd8 {[%clk 0:01:35.4]} 23. Ba3 {[%clk
0:01:39.6]} 23... Rf7 {[%clk 0:01:33.7]} 24. Bxf8 {[%clk 0:01:34.7]} 24... Kxf8
{[%clk 0:01:34.6]} 25. Bxb7 {[%clk 0:01:22.1]} 25... Rxb7 {[%clk 0:01:35.5]} 26.
Rhd1 {[%clk 0:01:21.9]} 26... Rbd7 {[%clk 0:01:33.7]} 27. e4 {[%clk 0:01:13]}
27... Nc7 {[%clk 0:01:27.9]} 28. Nb4 {[%clk 0:01:12.4]} 28... Ne6 {[%clk
0:01:21.6]} 29. Nc6 {[%clk 0:00:55.4]} 29... Nf4+ {[%clk 0:01:18.1]} 30. Ke1
{[%clk 0:00:48.3]} 30... Nxg2+ {[%clk 0:01:17.9]} 31. Ke2 {[%clk 0:00:47.5]}
31... Nf4+ {[%clk 0:01:18.3]} 32. Ke1 {[%clk 0:00:47.5]} 32... Ng2+ {[%clk
0:00:52.1]} 33. Ke2 {[%clk 0:00:47.3]} 33... Rxd1 {[%clk 0:00:52.5]} 34. Rxd1
{[%clk 0:00:46.1]} 34... Nf4+ {[%clk 0:00:52.6]} 35. Ke1 {[%clk 0:00:44.3]}
35... Ng2+ {[%clk 0:00:51.6]} 36. Ke2 {[%clk 0:00:43.5]} 36... Rxd1 {[%clk
0:00:52.2]} 37. Kxd1 {[%clk 0:00:43.7]} 37... a6 {[%clk 0:00:50.5]} 38. Nb8
{[%clk 0:00:42.8]} 38... Nxh4 {[%clk 0:00:49.4]} 39. Nxa6 {[%clk 0:00:40.8]}
39... Nf3 {[%clk 0:00:49.9]} 40. Ke2 {[%clk 0:00:29.7]} 40... Nd4+ {[%clk
0:00:48.6]} 41. Kd3 {[%clk 0:00:28.2]} 41... h5 {[%clk 0:00:47.5]} 42. Ke3
{[%clk 0:00:09.5]} 42... h4 {[%clk 0:00:47.6]} 43. f3 {[%clk 0:00:08.8]} 43...
h3 {[%clk 0:00:29.7]} 44. Kf2 {[%clk 0:00:08.8]} 44... h2 {[%clk 0:00:30.1]} 45.
Kg2 {[%clk 0:00:09]} 45... Nxf3 {[%clk 0:00:30]} 46. Nc7 {[%clk 0:00:07.7]}
46... g5 {[%clk 0:00:28.2]} 47. Nd5 {[%clk 0:00:06.6]} 47... Kf7 {[%clk
0:00:26.2]} 48. Nxb6 {[%clk 0:00:06.1]} 48... g4 {[%clk 0:00:24.3]} 49. a4
{[%clk 0:00:03.4]} 49... g3 {[%clk 0:00:24.1]} 50. a5 {[%clk 0:00:03.3]} 50...
Ne1+ {[%clk 0:00:24.7]} 51. Kh1 {[%clk 0:00:02.9]} 51... Nd3 {[%clk 0:00:25.3]}
0-1

[Event "*** Titled Tuesday Blitz"]
[Site "Chess.com"]
[Date "2020.03.03"]
[Round "4"]
[White "Witik"]
[Black "karwowskikacper"]
[Result "1-0"]
[WhiteElo "2637"]
[BlackElo "2374"]
[TimeControl "180+1"]
[EndTime "9:42:14 PST"]
[Termination "Witik won by resignation"]

1. d4 {[%clk 0:03:00.9]} 1... Nf6 {[%clk 0:02:55.7]} 2. Bf4 {[%clk 0:03:00.3]}
2... d6 {[%clk 0:02:54.4]} 3. Nf3 {[%clk 0:03:00]} 3... Nbd7 {[%clk 0:02:54.4]}
4. c4 {[%clk 0:02:59.4]} 4... g6 {[%clk 0:02:54.8]} 5. Nc3 {[%clk 0:02:59.3]}
5... Bg7 {[%clk 0:02:55.3]} 6. e3 {[%clk 0:02:56.9]} 6... O-O {[%clk 0:02:56.2]}
7. h3 {[%clk 0:02:56.2]} 7... c6 {[%clk 0:02:56.4]} 8. Bh2 {[%clk 0:02:55.6]}
8... Qc7 {[%clk 0:02:56.5]} 9. c5 {[%clk 0:02:52.3]} 9... b5 {[%clk 0:02:51.9]}
10. cxd6 {[%clk 0:02:47.9]} 10... exd6 {[%clk 0:02:51.2]} 11. Rc1 {[%clk
0:02:44]} 11... Qb8 {[%clk 0:02:38.6]} 12. Be2 {[%clk 0:02:23.4]} 12... Bb7
{[%clk 0:02:30.4]} 13. O-O {[%clk 0:02:13.6]} 13... Nb6 {[%clk 0:02:29.6]} 14.
Re1 {[%clk 0:02:04.2]} 14... Rd8 {[%clk 0:02:19.2]} 15. Bf1 {[%clk 0:01:58.7]}
15... b4 {[%clk 0:02:16.8]} 16. Ne2 {[%clk 0:01:54.2]} 16... a5 {[%clk
0:02:14.9]} 17. Nf4 {[%clk 0:01:46.4]} 17... Qa7 {[%clk 0:02:13.5]} 18. e4
{[%clk 0:01:40.9]} 18... Re8 {[%clk 0:02:07.8]} 19. e5 {[%clk 0:01:20.8]} 19...
dxe5 {[%clk 0:02:05.6]} 20. dxe5 {[%clk 0:01:19.9]} 20... Nfd5 {[%clk
0:02:04.6]} 21. e6 {[%clk 0:01:17.7]} 21... Nxf4 {[%clk 0:01:56.6]} 22. exf7+
{[%clk 0:01:17.2]} 22... Kxf7 {[%clk 0:01:57.5]} 23. Bxf4 {[%clk 0:01:15.7]}
23... Kg8 {[%clk 0:01:52.8]} 24. Ng5 {[%clk 0:00:48.9]} 24... h6 {[%clk
0:01:46]} 25. Qb3+ {[%clk 0:00:38.5]} 25... Nd5 {[%clk 0:01:45.7]} 26. Ne6
{[%clk 0:00:33.6]} 26... Qb6 {[%clk 0:00:45.1]} 27. Bc7 {[%clk 0:00:23.2]} 27...
a4 {[%clk 0:00:41.2]} 28. Qc4 {[%clk 0:00:15.9]} 28... Qa6 {[%clk 0:00:35.2]}
29. Qg4 {[%clk 0:00:15.6]} 29... Qa7 {[%clk 0:00:22.3]} 30. Qxg6 {[%clk
0:00:13.9]} 30... Re7 {[%clk 0:00:22.4]} 31. Be5 {[%clk 0:00:11.8]} 31... Rf8
{[%clk 0:00:19]} 32. Bxg7 {[%clk 0:00:08.3]} 32... Qxf2+ {[%clk 0:00:18.8]} 33.
Kh1 {[%clk 0:00:08.3]} 33... Nf4 {[%clk 0:00:15.9]} 34. Nxf4 {[%clk 0:00:05.7]}
34... Rxg7 {[%clk 0:00:16.1]} 35. Qe6+ {[%clk 0:00:04.7]} 35... Kh8 {[%clk
0:00:16.4]} 36. Ng6+ {[%clk 0:00:04.8]} 36... Rxg6 {[%clk 0:00:13.5]} 37. Qxg6
{[%clk 0:00:05.7]} 37... c5 {[%clk 0:00:14.1]} 38. Qxh6+ {[%clk 0:00:05.7]}
38... Kg8 {[%clk 0:00:14]} 39. Qg6+ {[%clk 0:00:05.6]} 39... Kh8 {[%clk
0:00:14]} 40. Qh5+ {[%clk 0:00:04.5]} 40... Kg7 {[%clk 0:00:13.9]} 41. Rxc5
{[%clk 0:00:05.2]} 41... Qxe1 {[%clk 0:00:10]} 42. Qg5+ {[%clk 0:00:05.5]} 42...
Kf7 {[%clk 0:00:09.5]} 43. Rc7+ {[%clk 0:00:05.3]} 43... Ke6 {[%clk 0:00:09.4]}
44. Qe7+ {[%clk 0:00:05.3]} 44... Kd5 {[%clk 0:00:09.6]} 45. Qxe1 {[%clk
0:00:06.2]} 1-0

[Event "*** Titled Tuesday Blitz"]
[Site "Chess.com"]
[Date "2020.03.03"]
[Round "4"]
[White "Timurist"]
[Black "Haykoooo0o"]
[Result "0-1"]
[WhiteElo "2235"]
[BlackElo "2483"]
[TimeControl "180+1"]
[EndTime "9:42:18 PST"]
[Termination "Haykoooo0o won by resignation"]

1. e4 {[%clk 0:03:00.9]} 1... e5 {[%clk 0:02:56.6]} 2. Nf3 {[%clk 0:03:00.7]}
2... Nc6 {[%clk 0:02:57.2]} 3. d4 {[%clk 0:03:00.7]} 3... exd4 {[%clk
0:02:57.3]} 4. Bc4 {[%clk 0:03:01.2]} 4... Nf6 {[%clk 0:02:56.8]} 5. e5 {[%clk
0:03:01.7]} 5... d5 {[%clk 0:02:56.8]} 6. Bb5 {[%clk 0:03:02]} 6... Ne4 {[%clk
0:02:57.4]} 7. Nxd4 {[%clk 0:03:01.7]} 7... Bc5 {[%clk 0:02:54.2]} 8. Be3 {[%clk
0:03:00.6]} 8... O-O {[%clk 0:02:50.2]} 9. Bxc6 {[%clk 0:02:56.5]} 9... bxc6
{[%clk 0:02:49.3]} 10. Nc3 {[%clk 0:02:47]} 10... Nxc3 {[%clk 0:02:47.4]} 11.
bxc3 {[%clk 0:02:47.9]} 11... Qe8 {[%clk 0:02:43.4]} 12. O-O {[%clk 0:02:36.4]}
12... Bd7 {[%clk 0:02:38.6]} 13. f4 {[%clk 0:02:35.2]} 13... f6 {[%clk
0:02:34.5]} 14. Qd2 {[%clk 0:02:27.3]} 14... fxe5 {[%clk 0:02:29.6]} 15. fxe5
{[%clk 0:02:26.3]} 15... Qxe5 {[%clk 0:02:30.5]} 16. Rae1 {[%clk 0:02:22.8]}
16... Rxf1+ {[%clk 0:02:24.3]} 17. Rxf1 {[%clk 0:02:20.5]} 17... Re8 {[%clk
0:02:20.2]} 18. Bf4 {[%clk 0:02:19.8]} 18... Bxd4+ {[%clk 0:02:17.9]} 19. cxd4
{[%clk 0:02:19.1]} 19... Qe2 {[%clk 0:02:17.5]} 20. Qxe2 {[%clk 0:01:58.5]}
20... Rxe2 {[%clk 0:02:18.4]} 21. Rf2 {[%clk 0:01:59.1]} 21... Re4 {[%clk
0:02:12.7]} 22. c3 {[%clk 0:01:58.7]} 22... Bc8 {[%clk 0:02:05.8]} 23. Bxc7
{[%clk 0:01:54.2]} 23... Ba6 {[%clk 0:02:05.2]} 24. h3 {[%clk 0:01:52.7]} 24...
Re3 {[%clk 0:02:04.5]} 25. Ba5 {[%clk 0:01:41.1]} 25... Bc4 {[%clk 0:01:53.6]}
26. a4 {[%clk 0:01:23.3]} 26... Re1+ {[%clk 0:01:51.3]} 27. Kh2 {[%clk
0:01:23.2]} 27... Ra1 {[%clk 0:01:50.8]} 28. Bb4 {[%clk 0:01:23.4]} 28... h6
{[%clk 0:01:50.2]} 29. a5 {[%clk 0:01:23.6]} 29... a6 {[%clk 0:01:48.1]} 30. Kg3
{[%clk 0:01:20.5]} 30... Kh7 {[%clk 0:01:47]} 31. Kf4 {[%clk 0:01:20.6]} 31...
Re1 {[%clk 0:01:45.7]} 32. h4 {[%clk 0:01:18.2]} 32... Kg6 {[%clk 0:01:45.2]}
33. Rf3 {[%clk 0:01:10.9]} 33... Re4+ {[%clk 0:01:39.5]} 34. Kg3 {[%clk
0:01:09.8]} 34... Re2 {[%clk 0:01:30.9]} 35. Rf2 {[%clk 0:01:07.6]} 35... Re1
{[%clk 0:01:30.5]} 36. Kf4 {[%clk 0:01:03.7]} 36... Bd3 {[%clk 0:01:28.5]} 37.
g4 {[%clk 0:00:54.7]} 37... h5 {[%clk 0:01:14.2]} 38. g5 {[%clk 0:00:42.7]}
38... Re4+ {[%clk 0:01:13.5]} 39. Kg3 {[%clk 0:00:43]} 39... Rg4+ {[%clk
0:01:14.1]} 40. Kh3 {[%clk 0:00:43.4]} 40... Bf5 {[%clk 0:01:14.7]} 41. Rg2
{[%clk 0:00:24.4]} 41... Rxd4+ {[%clk 0:01:05.8]} 42. Kg3 {[%clk 0:00:24.6]}
42... Rg4+ {[%clk 0:01:05]} 43. Kf2 {[%clk 0:00:25.2]} 43... Rxh4 {[%clk
0:01:04.9]} 44. Be7 {[%clk 0:00:24.3]} 44... Rc4 {[%clk 0:01:03.3]} 45. Rg3
{[%clk 0:00:22.5]} 45... h4 {[%clk 0:01:03.1]} 46. Re3 {[%clk 0:00:22.6]} 46...
Be4 {[%clk 0:01:02.3]} 47. Kg1 {[%clk 0:00:18]} 47... Kf5 {[%clk 0:01:01.3]} 48.
Kh2 {[%clk 0:00:16.4]} 48... Kg4 {[%clk 0:01:00.4]} 49. Kg1 {[%clk 0:00:10.7]}
49... g6 {[%clk 0:00:57]} 50. Kh2 {[%clk 0:00:10.5]} 50... Ra4 {[%clk
0:00:56.4]} 51. Re2 {[%clk 0:00:08.8]} 51... Rxa5 {[%clk 0:00:56.5]} 52. c4
{[%clk 0:00:07.4]} 52... Ra1 {[%clk 0:00:55]} 0-1